[Event "3rd Sharjah Masters 2019"]
[Site "Sharjah"]
[Date "2019.03.25"]
[Round "4.33"]
[White "Tissir, Mohamed"]
[Black "Pranav Vijay"]
[Result "0-1"]
[ECO "A46"]
[WhiteElo "2386"]
[BlackElo "2265"]
[Annotator "NA"]
[PlyCount "134"]
[EventDate "2019.03.22"]
[EventType "swiss"]
[EventCountry "UAE"]
[SourceTitle "playchess.com"]
[Source "ChessBase"]
[SourceQuality "1"]
[TimeControl "5400+30"]

1. d4 {[%emt 0:00:00]} Nf6 {[%emt 0:00:00]} 2. Nf3 {[%emt 0:00:41]} e6 {[%emt 0:00:00]} 3. Bf4 {[%emt 0:02:34]} b6 {[%emt 0:00:57]} 4. e3 {[%emt 0:00:17]} Bb7 {[%emt 0:00:26]} 5. h3 {[%emt 0:00:14]} d6 {[%emt 0:03:27]} 6. Nbd2 {[%emt 0:00:17]} Nbd7 {[%emt 0:00:35]} 7. Be2 {[%emt 0:03:14]} g6 {[%emt 0:01:23]} 8. O-O {[%emt 0:00:08]} Bg7 {[%emt 0:00:10]} 9. c3 {[%emt 0:00:07]} O-O {[%emt 0:00:58]} 10. Bh2 {[%emt 0:01:18]} Qe7 {[%emt 0:07:15]} 11. a4 {[%emt 0:01:24]} a6 {[%emt 0:03:06]} 12. Qb3 {[%emt 0:02:30]} e5 {[%emt 0:04:40]} 13. Qa3 {[%emt 0:22:04]} Ne4 {[%emt 0:08:40]} 14. Nxe4 {[%emt 0:16:43]} Bxe4 {[%emt 0:00:17]} 15. dxe5 {[%emt 0:00:03]} Nxe5 {[%emt 0:00:25]} 16. Nxe5 {[%emt 0:00:06]} Bxe5 {[%emt 0:00:09]} 17. Bxe5 {[%emt 0:00:06]} Qxe5 {[%emt 0:00:22]} 18. Rfd1 {[%emt 0:00:19]} a5 {[%emt 0:01:58]} 19. Qb3 {[%emt 0:00:57]} Qg5 {[%emt 0:03:18]} 20. Bf1 {[%emt 0:00:21]} Rae8 {[%emt 0:04:24]} 21. Qc4 {[%emt 0:02:48]} Re7 {[%emt 0:00:35]} 22. Rd4 {[%emt 0:01:30]} d5 {[%emt 0:06:11]} 23. Qc6 {[%emt 0:05:58]} Rd8 {[%emt 0:01:36]} 24. b4 {[%emt 0:10:44]} Qe5 {[%emt 0:24:26]} 25. Rc1 {[%emt 0:07:03]} Re6 {[%emt 0:07:34]} 26. Qb5 {[%emt 0:00:54]} Rb8 {[%emt 0:02:49]} 27. bxa5 {[%emt 0:07:10]} c6 {[%emt 0:00:07]} 28. Qa6 {[%emt 0:00:06]} c5 {[%emt 0:00:10]} 29. Rd2 {[%emt 0:00:05]} c4 {[%emt 0:02:30]} 30. Qb5 {[%emt 0:08:54]} bxa5 {[%emt 0:00:31]} 31. Qxa5 {[%emt 0:00:02]} Rc6 {[%emt 0:04:37]} 32. Qa7 {[%emt 0:00:55]} Rcb6 {[%emt 0:00:38]} 33. a5 {[%emt 0:01:49]} Rb1 {[%emt 0:00:10]} 34. Rdd1 {[%emt 0:00:36]} R1b5 {[%emt 0:02:48]} 35. Qd4 {[%emt 0:02:16]} Qxd4 {[%emt 0:00:05]} 36. Rxd4 {[%emt 0:00:07]} Rxa5 {[%emt 0:00:03]} 37. f3 {[%emt 0:00:08]} Bf5 {[%emt 0:00:03]} 38. e4 {[%emt 0:03:17]} dxe4 {[%emt 0:00:05]} 39. fxe4 {[%emt 0:00:24]} Be6 {[%emt 0:00:04]} 40. Bxc4 {[%emt 0:00:09]} Bxc4 {[%emt 0:00:04]} 41. Rxc4 {[%emt 0:00:07]} Rb2 {[%emt 0:00:14]} 42. e5 {[%emt 0:00:45]} Rxe5 {[%emt 0:00:39]} 43. Rg4 {[%emt 0:00:01]} h5 {[%emt 0:01:00]} 44. Rg3 {[%emt 0:00:28]} Ree2 {[%emt 0:00:04]} 45. Kh1 Kg7 {[%emt 0:01:01]} 46. Rg1 {[%emt 0:02:08]} Rbc2 {[%emt 0:00:27]} 47. Rd3 {[%emt 0:00:27]} f5 {[%emt 0:00:48]} 48. Kh2 {[%emt 0:00:40]} Kh6 {[%emt 0:00:21]} 49. Rf3 {[%emt 0:00:51]} Re4 {[%emt 0:01:24]} 50. Rd1 {[%emt 0:00:38]} Ree2 {[%emt 0:00:05]} 51. Rg1 {[%emt 0:00:01]} Kg5 {[%emt 0:00:42]} 52. Rd3 {[%emt 0:00:00]} f4 {[%emt 0:00:56]} 53. Kh1 {[%emt 0:01:21]} Rf2 {[%emt 0:00:42]} 54. Rd5+ {[%emt 0:00:38]} Kf6 {[%emt 0:02:13]} 55. Rd3 {[%emt 0:00:11]} g5 {[%emt 0:00:17]} 56. Re1 {[%emt 0:00:16]} g4 {[%emt 0:01:00]} 57. h4 {[%emt 0:01:07]} Rce2 {[%emt 0:00:09]} 58. Rxe2 {[%emt 0:00:29]} Rxe2 {[%emt 0:00:34]} 59. Kg1 {[%emt 0:00:30]} g3 {[%emt 0:00:28]} 60. Kf1 {[%emt 0:00:32]} Rf2+ {[%emt 0:00:03]} 61. Kg1 {[%emt 0:00:07]} Kf5 {[%emt 0:00:05]} 62. c4 {[%emt 0:00:50]} Rc2 {[%emt 0:00:15]} 63. Kf1 {[%emt 0:00:29]} Rxc4 {[%emt 0:00:04]} 64. Rd5+ {[%emt 0:00:31]} Kg4 {[%emt 0:00:03]} 65. Rg5+ {[%emt 0:00:16]} Kxh4 {[%emt 0:00:04]} 66. Rg8 {[%emt 0:00:03]} f3 {[%emt 0:00:13]} 67. gxf3 {[%emt 0:00:07]} Kh3 {[%emt 0:00:03]} 0-1

[Event "3rd Sharjah Masters 2019"]
[Site "Sharjah"]
[Date "2019.03.25"]
[Round "4.34"]
[White "Al Hosani, Omran"]
[Black "Zaibi, Amir"]
[Result "0-1"]
[ECO "A22"]
[WhiteElo "2238"]
[BlackElo "2386"]
[Annotator "NA"]
[PlyCount "65"]
[EventDate "2019.03.22"]
[EventType "swiss"]
[EventCountry "UAE"]
[SourceTitle "playchess.com"]
[Source "ChessBase"]
[SourceQuality "1"]
[TimeControl "5400+30"]

1. c4 {[%emt 0:00:00]} e5 {[%emt 0:00:00]} 2. Nc3 {[%emt 0:00:00]} Nf6 {[%emt 0:00:00]} 3. g3 {[%emt 0:00:00]} d5 {[%emt 0:00:00]} 4. cxd5 {[%emt 0:00:01]} Nxd5 {[%emt 0:00:02]} 5. Bg2 {[%emt 0:00:08]} Nb6 {[%emt 0:00:06]} 6. e3 {[%emt 0:00:00]} Nc6 {[%emt 0:01:03]} 7. Nge2 {[%emt 0:00:12]} h5 {[%emt 0:13:48]} 8. d4 {[%emt 0:26:42]} h4 {[%emt 0:06:22]} 9. O-O {[%emt 0:38:09]} Bd6 {[%emt 0:08:01]} 10. dxe5 {[%emt 0:00:25]} Nxe5 {[%emt 0:00:41]} 11. Ne4 {[%emt 0:03:11]} hxg3 {[%emt 0:03:57]} 12. fxg3 {[%emt 0:01:25]} Bg4 {[%emt 0:09:21]} 13. a4 {[%emt 0:01:38]} Be7 {[%emt 0:11:38]} 14. Qxd8+ {[%emt 0:03:55]} Rxd8 {[%emt 0:00:18]} 15. Nd4 {[%emt 0:00:02]} Nd5 {[%emt 0:03:44]} 16. Nc3 {[%emt 0:01:57]} Nxc3 {[%emt 0:01:34]} 17. bxc3 {[%emt 0:00:01]} c5 {[%emt 0:06:39]} 18. Nb5 {[%emt 0:00:01]} Be2 {[%emt 0:01:40]} 19. Re1 {[%emt 0:00:42]} Nf3+ {[%emt 0:00:50]} 20. Bxf3 {[%emt 0:00:07]} Bxf3 {[%emt 0:00:05]} 21. e4 {[%emt 0:01:18]} Rd3 {[%emt 0:04:40]} 22. Nc7+ {[%emt 0:00:57]} Kd7 {[%emt 0:00:06]} 23. Nd5 {[%emt 0:00:14]} Bd8 {[%emt 0:02:21]} 24. Ra3 {[%emt 0:07:41]} Re8 {[%emt 0:02:10]} 25. Nf4 {[%emt 0:00:01]} Rd1 {[%emt 0:00:32]} 26. Rxd1+ {[%emt 0:00:10]} Bxd1 {[%emt 0:00:05]} 27. Nd3 {[%emt 0:00:25]} c4 {[%emt 0:01:40]} 28. Nf2 {[%emt 0:00:01]} Bb6 {[%emt 0:02:34]} 29. a5 {[%emt 0:00:01]} Bc5 {[%emt 0:01:05]} 30. Ra2 {[%emt 0:00:01]} Bf3 {[%emt 0:00:36]} 31. Kf1 {[%emt 0:00:16]} Kc6 {[%emt 0:01:01]} 32. Bf4 {[%emt 0:00:16]} Bxe4 {[%emt 0:00:32]} 33. Re2 {[%emt 0:00:17]} 0-1

[Event "3rd Sharjah Masters 2019"]
[Site "Sharjah"]
[Date "2019.03.25"]
[Round "4.36"]
[White "Shanya, Mishra"]
[Black "Dhulipalla Bala Chandra Prasa"]
[Result "0-1"]
[ECO "A40"]
[WhiteElo "2026"]
[BlackElo "2384"]
[Annotator "NA"]
[PlyCount "66"]
[EventDate "2019.03.22"]
[EventType "swiss"]
[EventCountry "UAE"]
[SourceTitle "playchess.com"]
[Source "ChessBase"]
[SourceQuality "1"]
[TimeControl "5400+30"]

1. d4 {[%emt 0:00:00]} Nc6 {[%emt 0:00:00]} 2. c4 {[%emt 0:00:19]} e5 {[%emt 0:00:00]} 3. d5 {[%emt 0:01:26]} Nce7 {[%emt 0:00:03]} 4. Nf3 {[%emt 0:01:24]} Ng6 {[%emt 0:00:08]} 5. g3 {[%emt 0:00:14]} Bc5 {[%emt 0:00:55]} 6. Bg2 {[%emt 0:00:15]} d6 {[%emt 0:00:30]} 7. O-O {[%emt 0:02:56]} Nf6 {[%emt 0:01:20]} 8. b4 {[%emt 0:03:08]} Bb6 {[%emt 0:00:36]} 9. Bb2 {[%emt 0:03:08]} Qe7 {[%emt 0:08:02]} 10. Nc3 {[%emt 0:10:11]} a6 {[%emt 0:01:19]} 11. e4 {[%emt 0:02:59]} O-O {[%emt 0:06:10]} 12. Rc1 {[%emt 0:05:30]} Ba7 {[%emt 0:12:11]} 13. Qe2 {[%emt 0:07:10]} h6 {[%emt 0:08:21]} 14. Nd1 {[%emt 0:08:49]} Bd7 {[%emt 0:03:29]} 15. Qc2 {[%emt 0:05:25]} c6 {[%emt 0:06:33]} 16. Re1 {[%emt 0:07:11]} Rac8 {[%emt 0:02:27]} 17. Qd2 {[%emt 0:07:21]} c5 {[%emt 0:09:22]} 18. b5 {[%emt 0:05:42]} axb5 {[%emt 0:05:38]} 19. cxb5 {[%emt 0:00:08]} Bxb5 {[%emt 0:05:55]} 20. Qa5 {[%emt 0:02:46]} Qd7 {[%emt 0:04:51]} 21. Nc3 {[%emt 0:04:29]} Ba6 {[%emt 0:01:15]} 22. Nd2 {[%emt 0:02:27]} c4 {[%emt 0:01:47]} 23. Bf1 {[%emt 0:01:39]} Ng4 {[%emt 0:05:38]} 24. Nd1 {[%emt 0:01:05]} f5 {[%emt 0:02:04]} 25. h3 {[%emt 0:04:17]} Nf6 {[%emt 0:00:06]} 26. exf5 {[%emt 0:00:38]} Qxf5 {[%emt 0:00:01]} 27. Nxc4 {[%emt 0:00:28]} Ne4 {[%emt 0:03:04]} 28. Rxe4 {[%emt 0:02:51]} Qxe4 29. Nxd6 Rxc1 {[%emt 0:03:43]} 30. Bxc1 {[%emt 0:05:06]} Qf3 {[%emt 0:00:37]} 31. Qd2 {[%emt 0:02:04]} Qxg3+ {[%emt 0:00:06]} 32. Kh1 {[%emt 0:00:20]} Bxf2 {[%emt 0:00:22]} 33. Bg2 {[%emt 0:00:39]} Bf1 {[%emt 0:00:28]} 0-1

[Event "3rd Sharjah Masters 2019"]
[Site "Sharjah"]
[Date "2019.03.25"]
[Round "4.38"]
[White "Jinan, Jomon"]
[Black "Assaubayeva, Bibisara"]
[Result "1/2-1/2"]
[ECO "B06"]
[WhiteElo "1848"]
[BlackElo "2376"]
[Annotator "NA"]
[PlyCount "66"]
[EventDate "2019.03.22"]
[EventType "swiss"]
[EventCountry "UAE"]
[SourceTitle "playchess.com"]
[Source "ChessBase"]
[SourceQuality "1"]
[TimeControl "5400+30"]

1. e4 {[%emt 0:00:00]} g6 {[%emt 0:00:10]} 2. d4 {[%emt 0:00:00]} Bg7 {[%emt 0:00:24]} 3. Nf3 {[%emt 0:00:04]} d6 {[%emt 0:00:19]} 4. Bd3 {[%emt 0:00:14]} Nd7 {[%emt 0:07:14]} 5. O-O {[%emt 0:00:13]} e5 {[%emt 0:02:34]} 6. c3 {[%emt 0:00:10]} Ne7 {[%emt 0:02:31]} 7. dxe5 {[%emt 0:08:01]} dxe5 {[%emt 0:05:43]} 8. Be3 {[%emt 0:03:11]} O-O {[%emt 0:03:49]} 9. a4 {[%emt 0:11:18]} a5 {[%emt 0:05:22]} 10. Qb3 {[%emt 0:11:26]} Nf6 {[%emt 0:09:03]} 11. Rd1 {[%emt 0:18:34]} Bg4 {[%emt 0:05:18]} 12. Bc4 {[%emt 0:06:58]} Qe8 {[%emt 0:03:37]} 13. Nbd2 {[%emt 0:01:11]} b6 {[%emt 0:06:15]} 14. Bb5 {[%emt 0:08:56]} Qb8 {[%emt 0:05:04]} 15. Qa3 {[%emt 0:02:03]} c5 {[%emt 0:01:25]} 16. Be2 {[%emt 0:02:29]} Ra7 {[%emt 0:04:20]} 17. h3 {[%emt 0:00:39]} Bd7 {[%emt 0:01:00]} 18. Bb5 {[%emt 0:05:14]} Bxb5 {[%emt 0:04:04]} 19. axb5 {[%emt 0:00:03]} Nc8 {[%emt 0:00:12]} 20. Qa4 {[%emt 0:02:14]} Ne8 {[%emt 0:03:30]} 21. Nc4 {[%emt 0:01:30]} f5 {[%emt 0:02:09]} 22. Qc2 {[%emt 0:07:22]} f4 {[%emt 0:06:56]} 23. Bd2 {[%emt 0:00:06]} Bf6 {[%emt 0:01:19]} 24. Be1 {[%emt 0:00:29]} g5 {[%emt 0:01:55]} 25. Qd3 {[%emt 0:01:12]} Kh8 {[%emt 0:00:30]} 26. Qd5 {[%emt 0:01:34]} Re7 {[%emt 0:00:51]} 27. b4 {[%emt 0:02:11]} Nc7 {[%emt 0:03:09]} 28. Qc6 {[%emt 0:00:20]} axb4 {[%emt 0:01:40]} 29. cxb4 {[%emt 0:00:04]} Re6 {[%emt 0:02:30]} 30. Qd7 {[%emt 0:00:06]} Re7 {[%emt 0:00:41]} 31. Qc6 {[%emt 0:00:35]} Re6 {[%emt 0:00:09]} 32. Qd7 {[%emt 0:00:43]} Re7 {[%emt 0:00:23]} 33. Qc6 {[%emt 0:01:17]} Re6 {[%emt 0:02:01]} 1/2-1/2

[Event "3rd Sharjah Masters 2019"]
[Site "Sharjah"]
[Date "2019.03.26"]
[Round "5.12"]
[White "Abdusattorov, Nodirbek"]
[Black "Raja Rithvik R"]
[Result "1-0"]
[ECO "C77"]
[WhiteElo "2560"]
[BlackElo "2423"]
[Annotator "ChessBase"]
[PlyCount "113"]
[EventDate "2019.03.22"]
[EventType "swiss"]
[EventCountry "UAE"]
[SourceTitle "playchess.com"]
[Source "ChessBase"]
[SourceQuality "1"]
[TimeControl "5400+30"]

1. e4 {[%emt 0:00:00]} e5 {[%emt 0:00:00]} 2. Nf3 {[%emt 0:00:00]} Nc6 {[%emt 0:00:00]} 3. Bb5 {[%emt 0:00:00]} a6 {[%emt 0:00:00]} 4. Ba4 {[%emt 0:00:00]} Nf6 {[%emt 0:00:00]} 5. d3 {[%emt 0:00:03]} b5 {[%emt 0:00:28]} 6. Bb3 {[%emt 0:00:07]} Bc5 {[%emt 0:00:06]} 7. Nc3 {[%emt 0:00:19]} d6 {[%emt 0:00:23]} 8. Nd5 {[%emt 0:00:00]} h6 {[%emt 0:00:17]} 9. c3 {[%emt 0:00:29]} Rb8 {[%emt 0:00:23]} 10. O-O {[%emt 0:00:54]} O-O {[%emt 0:00:09]} 11. Be3 {[%emt 0:01:13]} Bxe3 {[%emt 0:02:39]} 12. Nxf6+ {[%emt 0:00:46]} Qxf6 {[%emt 0:00:07]} 13. fxe3 {[%emt 0:00:04]} Qe7 {[%emt 0:01:15]} 14. Qe1 {[%emt 0:04:30]} Be6 {[%emt 0:15:44]} 15. Nh4 {[%emt 0:05:18]} Qd7 {[%emt 0:18:39]} 16. Qg3 {[%emt 0:04:45]} Ne7 {[%emt 0:04:27]} 17. d4 {[%emt 0:00:59]} f6 {[%emt 0:16:22]} 18. Qg4 {[%emt 0:06:02]} d5 {[%emt 0:00:55]} 19. Nf5 {[%emt 0:01:02]} Bxf5 {[%emt 0:09:26]} 20. exf5 {[%emt 0:00:08]} Kh8 {[%emt 0:01:06]} 21. dxe5 {[%emt 0:01:52]} fxe5 {[%emt 0:00:08]} 22. Rad1 {[%emt 0:01:35]} Rxf5 {[%emt 0:04:19]} 23. Rxf5 {[%emt 0:04:50]} Qxf5 {[%emt 0:00:05]} 24. Qxf5 {[%emt 0:00:05]} Nxf5 {[%emt 0:00:02]} 25. Rxd5 {[%emt 0:00:09]} Nxe3 {[%emt 0:04:19]} 26. Rxe5 {[%emt 0:00:16]} Ng4 {[%emt 0:04:51]} 27. Re7 {[%emt 0:04:14]} c5 {[%emt 0:03:08]} 28. h3 {[%emt 0:01:24]} Nf6 {[%emt 0:00:06]} 29. Ra7 {[%emt 0:01:29]} c4 {[%emt 0:06:23]} 30. Bc2 {[%emt 0:00:25]} Nd5 {[%emt 0:01:05]} 31. Be4 {[%emt 0:03:09]} Nb6 {[%emt 0:01:00]} 32. Rxa6 {[%emt 0:07:00]} Na4 {[%emt 0:00:10]} 33. Ra8 {[%emt 0:01:01]} Rxa8 {[%emt 0:00:12]} 34. Bxa8 {[%emt 0:00:10]} Nxb2 {[%emt 0:02:12]} 35. Bc6 {[%emt 0:00:14]} Kg8 {[%emt 0:01:48]} 36. Bxb5 {[%emt 0:01:06]} Kf8 {[%emt 0:00:49]} 37. Kf2 {[%emt 0:01:19]} Nd1+ {[%emt 0:00:32]} 38. Kf3 {[%emt 0:00:06]} Nxc3 {[%emt 0:00:08]} 39. Bxc4 {[%emt 0:00:06]} Ke7 {[%emt 0:00:23]} 40. Kf4 {[%emt 0:01:27]} Kf6 {[%emt 0:00:29]} 41. Bb3 {[%emt 0:01:46]} g5+ {[%emt 0:00:48]} 42. Kg4 {[%emt 0:01:07]} Ne4 {[%emt 0:01:18]} 43. a4 {[%emt 0:00:49]} Nd6 {[%emt 0:02:39]} 44. a5 {[%emt 0:00:12]} Nb5 {[%emt 0:00:18]} 45. a6 {[%emt 0:00:20]} Na7 {[%emt 0:00:17]} 46. Ba4 {[%emt 0:00:25]} Nc8 {[%emt 0:00:13]} 47. Bd7 {[%emt 0:00:20]} Na7 {[%emt 0:00:04]} 48. Kh5 {[%emt 0:00:17]} Kg7 {[%emt 0:00:04]} 49. g3 {[%emt 0:00:11]} Kh7 {[%emt 0:00:14]} 50. Kg4 {[%emt 0:00:06]} Kg6 {[%emt 0:00:06]} 51. Kf3 {[%emt 0:00:05]} Kf6 {[%emt 0:00:36]} 52. Ke4 {[%emt 0:00:05]} Ke7 {[%emt 0:00:10]} 53. Bg4 {[%emt 0:00:18]} Nb5 {[%emt 0:01:35]} 54. Kf5 {[%emt 0:00:22]} Kf7 {[%emt 0:00:12]} 55. Be2 {[%emt 0:00:42]} Na7 {[%emt 0:00:15]} 56. Bc4+ {[%emt 0:00:09]} Kg7 {[%emt 0:00:04]} 57. Ke4 1-0

[Event "3rd Sharjah Masters 2019"]
[Site "Sharjah"]
[Date "2019.03.26"]
[Round "5.13"]
[White "Akash G"]
[Black "Fier, Alexandr"]
[Result "0-1"]
[ECO "B83"]
[WhiteElo "2411"]
[BlackElo "2551"]
[Annotator "ChessBase"]
[PlyCount "92"]
[EventDate "2019.03.22"]
[EventType "swiss"]
[EventCountry "UAE"]
[SourceTitle "playchess.com"]
[Source "ChessBase"]
[SourceQuality "1"]
[TimeControl "5400+30"]

1. e4 {[%emt 0:00:00]} c5 {[%emt 0:00:00]} 2. Nf3 {[%emt 0:00:00]} e6 {[%emt 0:00:00]} 3. d4 {[%emt 0:00:00]} cxd4 {[%emt 0:00:00]} 4. Nxd4 {[%emt 0:00:06]} Nc6 {[%emt 0:00:00]} 5. Nc3 {[%emt 0:00:15]} d6 {[%emt 0:00:00]} 6. Be2 {[%emt 0:00:31]} Nf6 {[%emt 0:00:00]} 7. O-O {[%emt 0:00:08]} Be7 {[%emt 0:00:00]} 8. Be3 {[%emt 0:00:23]} O-O {[%emt 0:00:00]} 9. f4 {[%emt 0:00:11]} Bd7 {[%emt 0:00:03]} 10. Nb3 {[%emt 0:00:58]} a6 {[%emt 0:00:05]} 11. a4 {[%emt 0:00:24]} b6 {[%emt 0:00:04]} 12. Bf3 {[%emt 0:02:13]} Rb8 {[%emt 0:00:05]} 13. g4 {[%emt 0:03:28]} h6 {[%emt 0:02:15]} 14. Qe2 {[%emt 0:09:32]} b5 {[%emt 0:00:12]} 15. axb5 {[%emt 0:08:37]} axb5 {[%emt 0:00:06]} 16. Nxb5 {[%emt 0:02:31]} d5 {[%emt 0:01:15]} 17. exd5 {[%emt 0:18:25]} Nxd5 {[%emt 0:01:50]} 18. Bxd5 {[%emt 0:07:41]} exd5 {[%emt 0:00:03]} 19. N5d4 {[%emt 0:01:00]} Nxd4 {[%emt 0:00:06]} 20. Bxd4 {[%emt 0:03:04]} Bb5 {[%emt 0:00:58]} 21. Qd2 {[%emt 0:03:19]} Bxf1 {[%emt 0:01:50]} 22. Rxf1 {[%emt 0:00:08]} Bf6 {[%emt 0:00:09]} 23. Qc3 {[%emt 0:04:58]} Bxd4+ {[%emt 0:00:55]} 24. Nxd4 {[%emt 0:00:24]} Re8 {[%emt 0:00:27]} 25. Kg2 {[%emt 0:06:25]} Qb6 {[%emt 0:03:31]} 26. b3 {[%emt 0:02:16]} Rbc8 {[%emt 0:11:25]} 27. Qd3 {[%emt 0:03:42]} g6 {[%emt 0:00:36]} 28. Rf2 {[%emt 0:02:24]} Re4 {[%emt 0:00:13]} 29. Ne2 {[%emt 0:03:16]} Qc5 {[%emt 0:03:37]} 30. c4 {[%emt 0:02:44]} Rd8 {[%emt 0:07:15]} 31. cxd5 {[%emt 0:01:54]} Rb4 {[%emt 0:00:03]} 32. Ng3 {[%emt 0:01:50]} Qxd5+ {[%emt 0:00:51]} 33. Qxd5 {[%emt 0:00:09]} Rxd5 {[%emt 0:00:01]} 34. h4 {[%emt 0:01:58]} Rdd4 {[%emt 0:00:27]} 35. Ne2 {[%emt 0:01:10]} Rd2 {[%emt 0:00:04]} 36. g5 {[%emt 0:00:33]} h5 {[%emt 0:00:19]} 37. Kf1 {[%emt 0:03:45]} Rxb3 {[%emt 0:00:26]} 38. f5 {[%emt 0:00:21]} Rb1+ {[%emt 0:00:07]} 39. Kg2 {[%emt 0:00:11]} Rbb2 {[%emt 0:00:02]} 40. Kf3 {[%emt 0:00:20]} gxf5 {[%emt 0:00:04]} 41. Rg2 {[%emt 0:00:37]} Rd3+ {[%emt 0:00:31]} 42. Kf4 {[%emt 0:00:25]} Rb4+ {[%emt 0:00:11]} 43. Ke5 {[%emt 0:00:40]} Re3+ {[%emt 0:00:42]} 44. Kxf5 {[%emt 0:00:22]} Rb2 {[%emt 0:00:14]} 45. Nf4 {[%emt 0:01:05]} Rb5+ {[%emt 0:00:04]} 46. Kf6 {[%emt 0:00:07]} Rf3 {[%emt 0:00:03]} 0-1

[Event "3rd Sharjah Masters 2019"]
[Site "Sharjah"]
[Date "2019.03.26"]
[Round "5.17"]
[White "Nigmatov, Ortik"]
[Black "Koniahli, Malek."]
[Result "0-1"]
[ECO "C80"]
[WhiteElo "2478"]
[BlackElo "2294"]
[Annotator "ChessBase"]
[PlyCount "48"]
[EventDate "2019.03.22"]
[EventType "swiss"]
[EventCountry "UAE"]
[SourceTitle "playchess.com"]
[Source "ChessBase"]
[SourceQuality "1"]
[TimeControl "5400+30"]

1. e4 {[%emt 0:00:00]} e5 {[%emt 0:00:00]} 2. Nf3 {[%emt 0:00:00]} Nc6 {[%emt 0:00:00]} 3. Bb5 {[%emt 0:00:11]} a6 {[%emt 0:00:04]} 4. Ba4 {[%emt 0:00:04]} Nf6 {[%emt 0:00:06]} 5. O-O {[%emt 0:00:11]} Nxe4 {[%emt 0:00:05]} 6. Re1 {[%emt 0:05:16]} Nc5 {[%emt 0:00:37]} 7. Bxc6 {[%emt 0:00:14]} dxc6 {[%emt 0:00:08]} 8. Nxe5 {[%emt 0:00:05]} Be7 {[%emt 0:00:59]} 9. d4 {[%emt 0:05:59]} Nd7 {[%emt 0:11:51]} 10. Qf3 {[%emt 0:08:45]} O-O {[%emt 0:05:15]} 11. Nc3 {[%emt 0:00:37]} Nxe5 {[%emt 0:04:27]} 12. dxe5 {[%emt 0:00:20]} Qd7 {[%emt 0:00:18]} 13. Ne4 {[%emt 0:13:03]} Qf5 {[%emt 0:03:09]} 14. Bf4 {[%emt 0:15:24]} Be6 {[%emt 0:03:08]} 15. h3 {[%emt 0:01:15]} Rad8 {[%emt 0:01:59]} 16. Qe3 {[%emt 0:03:37]} Bb4 {[%emt 0:09:02]} 17. Rec1 {[%emt 0:03:46]} Qg6 {[%emt 0:11:59]} 18. c3 {[%emt 0:15:59]} Ba5 {[%emt 0:01:34]} 19. Re1 {[%emt 0:01:04]} Bb6 {[%emt 0:01:14]} 20. Qf3 {[%emt 0:00:22]} Bd5 {[%emt 0:13:56]} 21. b3 {[%emt 0:01:55]} f5 {[%emt 0:01:31]} 22. exf6 {[%emt 0:01:54]} Rde8 {[%emt 0:00:22]} 23. fxg7 {[%emt 0:15:57]} Kxg7 {[%emt 0:00:54]} 24. Qg3 {[%emt 0:01:29]} Rxe4 {[%emt 0:02:22]} 0-1

[Event "3rd Sharjah Masters 2019"]
[Site "Sharjah"]
[Date "2019.03.26"]
[Round "5.23"]
[White "Debashis, Das"]
[Black "Buksa, Nataliya"]
[Result "1/2-1/2"]
[ECO "D31"]
[WhiteElo "2532"]
[BlackElo "2416"]
[Annotator "ChessBase"]
[PlyCount "67"]
[EventDate "2019.03.22"]
[EventType "swiss"]
[EventCountry "UAE"]
[SourceTitle "playchess.com"]
[Source "ChessBase"]
[SourceQuality "1"]
[TimeControl "5400+30"]

1. d4 {[%emt 0:00:00]} d5 {[%emt 0:00:00]} 2. c4 {[%emt 0:00:00]} e6 {[%emt 0:00:00]} 3. Nc3 {[%emt 0:00:00]} Be7 {[%emt 0:00:00]} 4. cxd5 {[%emt 0:00:00]} exd5 {[%emt 0:00:00]} 5. Bf4 {[%emt 0:00:00]} Nf6 {[%emt 0:00:00]} 6. e3 {[%emt 0:00:05]} Bf5 {[%emt 0:00:03]} 7. Qb3 {[%emt 0:00:14]} Nc6 {[%emt 0:00:18]} 8. a3 {[%emt 0:00:05]} Na5 {[%emt 0:00:04]} 9. Qa2 {[%emt 0:00:28]} c6 {[%emt 0:00:06]} 10. Nf3 {[%emt 0:01:44]} b5 {[%emt 0:00:07]} 11. Be2 {[%emt 0:07:00]} O-O {[%emt 0:00:05]} 12. Ne5 {[%emt 0:18:21]} Rc8 {[%emt 0:00:05]} 13. O-O {[%emt 0:07:42]} Nc4 {[%emt 0:00:04]} 14. Bd3 {[%emt 0:04:47]} Bxd3 {[%emt 0:09:22]} 15. Nxd3 {[%emt 0:00:08]} a5 {[%emt 0:00:11]} 16. Rad1 {[%emt 0:05:47]} Nh5 {[%emt 0:22:12]} 17. a4 {[%emt 0:01:04]} Nxf4 {[%emt 0:00:57]} 18. Nxf4 {[%emt 0:00:34]} b4 {[%emt 0:02:24]} 19. Nce2 {[%emt 0:01:04]} b3 {[%emt 0:09:50]} 20. Qb1 {[%emt 0:01:43]} Bb4 {[%emt 0:17:13]} 21. Qc1 {[%emt 0:04:01]} Qe7 {[%emt 0:00:33]} 22. Kh1 {[%emt 0:08:04]} Rfd8 {[%emt 0:03:31]} 23. Qa1 {[%emt 0:04:05]} Qe4 {[%emt 0:01:18]} 24. Rd3 {[%emt 0:04:52]} Rb8 {[%emt 0:13:21]} 25. Rfd1 {[%emt 0:02:07]} Bd6 {[%emt 0:00:03]} 26. Rc3 {[%emt 0:02:39]} Rb6 {[%emt 0:03:40]} 27. Kg1 {[%emt 0:03:36]} Rdb8 {[%emt 0:00:59]} 28. Rcd3 {[%emt 0:01:04]} Qe7 {[%emt 0:01:29]} 29. Rc3 {[%emt 0:01:01]} h5 {[%emt 0:03:29]} 30. Rcd3 {[%emt 0:05:59]} Ba3 {[%emt 0:03:32]} 31. Rb1 {[%emt 0:00:25]} Bd6 {[%emt 0:00:21]} 32. Rbd1 {[%emt 0:00:16]} Ba3 {[%emt 0:06:08]} 33. Rb1 {[%emt 0:00:19]} Bd6 {[%emt 0:00:12]} 34. Rbd1 {[%emt 0:04:18]} 1/2-1/2

[Event "3rd Sharjah Masters 2019"]
[Site "Sharjah"]
[Date "2019.03.26"]
[Round "5.24"]
[White "Zou, Chen"]
[Black "Gukesh, D."]
[Result "1-0"]
[ECO "B33"]
[WhiteElo "2397"]
[BlackElo "2529"]
[Annotator "ChessBase"]
[PlyCount "73"]
[EventDate "2019.03.22"]
[EventType "swiss"]
[EventCountry "UAE"]
[SourceTitle "playchess.com"]
[Source "ChessBase"]
[SourceQuality "1"]
[TimeControl "5400+30"]

1. e4 c5 2. Nf3 Nc6 3. d4 cxd4 4. Nxd4 Nf6 5. Nc3 e5 6. Ndb5 d6 7. Bg5 a6 8. Na3 b5 9. Bxf6 gxf6 10. Nd5 f5 11. Bxb5 axb5 12. Nxb5 Ra4 13. Nbc7+ Kd7 14. O-O Bb7 15. c4 Rxc4 16. Qb3 Na5 17. Qb5+ Bc6 18. Nb6+ Kxc7 19. Qxa5 Rc5 20. Qa7+ Bb7 21. b4 Rc6 22. Rac1 Qe8 23. Nd5+ Kc8 24. a4 Bh6 25. Rxc6+ Qxc6 26. Ne7+ Kc7 27. Nxc6 Ra8 28. Qxa8 Bxa8 29. b5 fxe4 30. Re1 f5 31. Ne7 f4 32. Rc1+ Kb6 33. Nf5 Bg5 34. h4 Bf6 35. Rc8 e3 36. fxe3 Be4 37. Rf8 1-0